{"text_format":"1","workbook":"xlsx","n_sheets":2,"sheets":["AMATEUR","PRO"],"not_rendered":{"charts":0,"images":0,"macros":1,"external_links":0,"defined_names":0,"comments":0,"pivot_tables":0},"unopened":[],"bounds":{"document_bytes":16777216,"sheet_cells":100000,"rows_first":2000,"rows_last":500,"rows_between":2000,"halvings":0,"cell_chars":16384,"cell_head_chars":4096},"cells_cut":0,"cells_raw":0,"read":"whole","date_system":"1900"}

{"sheet":"AMATEUR","index":0,"n_rows":103,"n_cols":10,"rows_kept":103,"cut":false,"hidden":false,"merged":[[0,0,1,0],[0,1,1,1],[0,2,0,7],[0,8,1,8],[0,9,1,9]]}
["PLACE","Name","MINGLE-SINGLE AMATEUR ROUNDS",null,null,null,null,null,"Score","Games"]
[null,null,1,2,3,4,5,6]
[1,null,null,null,null,null,null,null,{"$f":"SUM(C3:H3)","v":0},{"$f":"COUNT(C3:H3)","v":0}]
[{"$f":"A3+1","v":2},null,null,null,null,null,null,null,0,0]
[{"$f":"A4+1","v":3},null,null,null,null,null,null,null,0,0]
[4,null,null,null,null,null,null,null,0,0]
[5,null,null,null,null,null,null,null,0,0]
[6,null,null,null,null,null,null,null,0,0]
[7,null,null,null,null,null,null,null,0,0]
[8,null,null,null,null,null,null,null,0,0]
[9,null,null,null,null,null,null,null,0,0]
[10,null,null,null,null,null,null,null,0,0]
[11,null,null,null,null,null,null,null,0,0]
[12,null,null,null,null,null,null,null,0,0]
[13,null,null,null,null,null,null,null,0,0]
[14,null,null,null,null,null,null,null,0,0]
[15,null,null,null,null,null,null,null,0,0]
[16,null,null,null,null,null,null,null,0,0]
[17,null,null,null,null,null,null,null,0,0]
[18,null,null,null,null,null,null,null,0,0]
[19,null,null,null,null,null,null,null,0,0]
[20,null,null,null,null,null,null,null,0,0]
[21,null,null,null,null,null,null,null,0,0]
[22,null,null,null,null,null,null,null,0,0]
[23,null,null,null,null,null,null,null,0,0]
[24,null,null,null,null,null,null,null,0,0]
[25,null,null,null,null,null,null,null,0,0]
[26,null,null,null,null,null,null,null,0,0]
[27,null,null,null,null,null,null,null,0,0]
[28,null,null,null,null,null,null,null,0,0]
[29,null,null,null,null,null,null,null,0,0]
[30,null,null,null,null,null,null,null,0,0]
[31,null,null,null,null,null,null,null,0,0]
[32,null,null,null,null,null,null,null,0,0]
[33,null,null,null,null,null,null,null,{"$f":"SUM(C35:H35)","v":0},{"$f":"COUNT(C35:H35)","v":0}]
[34,null,null,null,null,null,null,null,0,0]
[35,null,null,null,null,null,null,null,0,0]
[36,null,null,null,null,null,null,null,0,0]
[37,null,null,null,null,null,null,null,0,0]
[38,null,null,null,null,null,null,null,0,0]
[39,null,null,null,null,null,null,null,0,0]
[40,null,null,null,null,null,null,null,0,0]
[41,null,null,null,null,null,null,null,0,0]
[42,null,null,null,null,null,null,null,0,0]
[43,null,null,null,null,null,null,null,0,0]
[44,null,null,null,null,null,null,null,0,0]
[45,null,null,null,null,null,null,null,0,0]
[46,null,null,null,null,null,null,null,0,0]
[47,null,null,null,null,null,null,null,0,0]
[48,null,null,null,null,null,null,null,0,0]
[49,null,null,null,null,null,null,null,0,0]
[50,null,null,null,null,null,null,null,0,0]
[51,null,null,null,null,null,null,null,0,0]
[52,null,null,null,null,null,null,null,0,0]
[53,null,null,null,null,null,null,null,0,0]
[54,null,null,null,null,null,null,null,0,0]
[55,null,null,null,null,null,null,null,0,0]
[56,null,null,null,null,null,null,null,0,0]
[57,null,null,null,null,null,null,null,0,0]
[58,null,null,null,null,null,null,null,0,0]
[59,null,null,null,null,null,null,null,0,0]
[60,null,null,null,null,null,null,null,0,0]
[61,null,null,null,null,null,null,null,0,0]
[62,null,null,null,null,null,null,null,0,0]
[63,null,null,null,null,null,null,null,0,0]
[64,null,null,null,null,null,null,null,0,0]
[65,null,null,null,null,null,null,null,{"$f":"SUM(C67:H67)","v":0},{"$f":"COUNT(C67:H67)","v":0}]
[66,null,null,null,null,null,null,null,0,0]
[{"$f":"A68+1","v":67},null,null,null,null,null,null,null,0,0]
[68,null,null,null,null,null,null,null,0,0]
[69,null,null,null,null,null,null,null,0,0]
[70,null,null,null,null,null,null,null,0,0]
[71,null,null,null,null,null,null,null,0,0]
[72,null,null,null,null,null,null,null,0,0]
[73,null,null,null,null,null,null,null,0,0]
[74,null,null,null,null,null,null,null,0,0]
[75,null,null,null,null,null,null,null,0,0]
[76,null,null,null,null,null,null,null,0,0]
[77,null,null,null,null,null,null,null,0,0]
[78,null,null,null,null,null,null,null,0,0]
[79,null,null,null,null,null,null,null,0,0]
[80,null,null,null,null,null,null,null,0,0]
[81,null,null,null,null,null,null,null,0,0]
[82,null,null,null,null,null,null,null,0,0]
[83,null,null,null,null,null,null,null,0,0]
[84,null,null,null,null,null,null,null,0,0]
[85,null,null,null,null,null,null,null,0,0]
[86,null,null,null,null,null,null,null,0,0]
[87,null,null,null,null,null,null,null,0,0]
[88,null,null,null,null,null,null,null,0,0]
[89,null,null,null,null,null,null,null,0,0]
[90,null,null,null,null,null,null,null,0,0]
[91,null,null,null,null,null,null,null,0,0]
[92,null,null,null,null,null,null,null,0,0]
[93,null,null,null,null,null,null,null,0,0]
[94,null,null,null,null,null,null,null,0,0]
[95,null,null,null,null,null,null,null,0,0]
[96,null,null,null,null,null,null,null,0,0]
[97,null,null,null,null,null,null,null,{"$f":"SUM(C99:H99)","v":0},0]
[98,null,null,null,null,null,null,null,0,0]
[99,null,null,null,null,null,null,null,0,0]
[100,null,null,null,null,null,null,null,0,0]
[null,"TOTAL ENTRIES PER ROUND",{"$f":"COUNT(C3:C102)","v":0},0,0,0,0,0]

{"sheet":"PRO","index":1,"n_rows":103,"n_cols":10,"rows_kept":103,"cut":false,"hidden":false,"merged":[[0,0,1,0],[0,1,1,1],[0,2,0,7],[0,8,1,8],[0,9,1,9]]}
["PLACE","Name","MINGLE-SINGLE PRO ROUNDS",null,null,null,null,null,"Score","Games"]
[null,null,1,2,3,4,5,6]
[1,null,null,null,null,null,null,null,{"$f":"SUM(C3:H3)","v":0},{"$f":"COUNT(C3:H3)","v":0}]
[{"$f":"A3+1","v":2},null,null,null,null,null,null,null,0,0]
[{"$f":"A4+1","v":3},null,null,null,null,null,null,null,0,0]
[4,null,null,null,null,null,null,null,0,0]
[5,null,null,null,null,null,null,null,0,0]
[6,null,null,null,null,null,null,null,0,0]
[7,null,null,null,null,null,null,null,0,0]
[8,null,null,null,null,null,null,null,0,0]
[9,null,null,null,null,null,null,null,0,0]
[10,null,null,null,null,null,null,null,0,0]
[11,null,null,null,null,null,null,null,0,0]
[12,null,null,null,null,null,null,null,0,0]
[13,null,null,null,null,null,null,null,0,0]
[14,null,null,null,null,null,null,null,0,0]
[15,null,null,null,null,null,null,null,0,0]
[16,null,null,null,null,null,null,null,0,0]
[17,null,null,null,null,null,null,null,0,0]
[18,null,null,null,null,null,null,null,0,0]
[19,null,null,null,null,null,null,null,0,0]
[20,null,null,null,null,null,null,null,0,0]
[21,null,null,null,null,null,null,null,0,0]
[22,null,null,null,null,null,null,null,0,0]
[23,null,null,null,null,null,null,null,0,0]
[24,null,null,null,null,null,null,null,0,0]
[25,null,null,null,null,null,null,null,0,0]
[26,null,null,null,null,null,null,null,0,0]
[27,null,null,null,null,null,null,null,0,0]
[28,null,null,null,null,null,null,null,0,0]
[29,null,null,null,null,null,null,null,0,0]
[30,null,null,null,null,null,null,null,0,0]
[31,null,null,null,null,null,null,null,0,0]
[32,null,null,null,null,null,null,null,0,0]
[33,null,null,null,null,null,null,null,{"$f":"SUM(C35:H35)","v":0},{"$f":"COUNT(C35:H35)","v":0}]
[34,null,null,null,null,null,null,null,0,0]
[35,null,null,null,null,null,null,null,0,0]
[36,null,null,null,null,null,null,null,0,0]
[37,null,null,null,null,null,null,null,0,0]
[38,null,null,null,null,null,null,null,0,0]
[39,null,null,null,null,null,null,null,0,0]
[40,null,null,null,null,null,null,null,0,0]
[41,null,null,null,null,null,null,null,0,0]
[42,null,null,null,null,null,null,null,0,0]
[43,null,null,null,null,null,null,null,0,0]
[44,null,null,null,null,null,null,null,0,0]
[45,null,null,null,null,null,null,null,0,0]
[46,null,null,null,null,null,null,null,0,0]
[47,null,null,null,null,null,null,null,0,0]
[48,null,null,null,null,null,null,null,0,0]
[49,null,null,null,null,null,null,null,0,0]
[50,null,null,null,null,null,null,null,0,0]
[51,null,null,null,null,null,null,null,0,0]
[52,null,null,null,null,null,null,null,0,0]
[53,null,null,null,null,null,null,null,0,0]
[54,null,null,null,null,null,null,null,0,0]
[55,null,null,null,null,null,null,null,0,0]
[56,null,null,null,null,null,null,null,0,0]
[57,null,null,null,null,null,null,null,0,0]
[58,null,null,null,null,null,null,null,0,0]
[59,null,null,null,null,null,null,null,0,0]
[60,null,null,null,null,null,null,null,0,0]
[61,null,null,null,null,null,null,null,0,0]
[62,null,null,null,null,null,null,null,0,0]
[63,null,null,null,null,null,null,null,0,0]
[64,null,null,null,null,null,null,null,0,0]
[65,null,null,null,null,null,null,null,{"$f":"SUM(C67:H67)","v":0},{"$f":"COUNT(C67:H67)","v":0}]
[66,null,null,null,null,null,null,null,0,0]
[{"$f":"A68+1","v":67},null,null,null,null,null,null,null,0,0]
[68,null,null,null,null,null,null,null,0,0]
[69,null,null,null,null,null,null,null,0,0]
[70,null,null,null,null,null,null,null,0,0]
[71,null,null,null,null,null,null,null,0,0]
[72,null,null,null,null,null,null,null,0,0]
[73,null,null,null,null,null,null,null,0,0]
[74,null,null,null,null,null,null,null,0,0]
[75,null,null,null,null,null,null,null,0,0]
[76,null,null,null,null,null,null,null,0,0]
[77,null,null,null,null,null,null,null,0,0]
[78,null,null,null,null,null,null,null,0,0]
[79,null,null,null,null,null,null,null,0,0]
[80,null,null,null,null,null,null,null,0,0]
[81,null,null,null,null,null,null,null,0,0]
[82,null,null,null,null,null,null,null,0,0]
[83,null,null,null,null,null,null,null,0,0]
[84,null,null,null,null,null,null,null,0,0]
[85,null,null,null,null,null,null,null,0,0]
[86,null,null,null,null,null,null,null,0,0]
[87,null,null,null,null,null,null,null,0,0]
[88,null,null,null,null,null,null,null,0,0]
[89,null,null,null,null,null,null,null,0,0]
[90,null,null,null,null,null,null,null,0,0]
[91,null,null,null,null,null,null,null,0,0]
[92,null,null,null,null,null,null,null,0,0]
[93,null,null,null,null,null,null,null,0,0]
[94,null,null,null,null,null,null,null,0,0]
[95,null,null,null,null,null,null,null,0,0]
[96,null,null,null,null,null,null,null,0,0]
[97,null,null,null,null,null,null,null,{"$f":"SUM(C99:H99)","v":0},0]
[98,null,null,null,null,null,null,null,0,0]
[99,null,null,null,null,null,null,null,0,0]
[100,null,null,null,null,null,null,null,0,0]
[null,"TOTAL ENTRIES PER ROUND",{"$f":"COUNT(C3:C102)","v":0},0,0,0,0,0]